[Event "November 21 Early 2023"]
[Site "https://www.chess.com"]
[Date "2023.11.21"]
[Round "9"]
[White "Golubev, Mikhail"]
[Black "ploxoi"]
[Result "1-0"]
[Board "74"]
[TimeControl "180+1"]
[WhiteFideId "14100983"]
[WhiteElo "2352"]
[BlackElo "2444"]
[WhiteTeam "UKR"]
[WhiteClock "0:00:17"]
[BlackClock "0:00:12"]

1. e4 {[%clk 0:03:00]}  c5 {[%clk 0:03:00]} 2. Nf3 {[%clk 0:03:00]}  e6 {[%clk 0:03:00]} 3. d4 {[%clk 0:02:59]}  cxd4 {[%clk 0:03:01]} 4. Nxd4 {[%clk 0:03:00]}  Nc6 {[%clk 0:03:02]} 5. Nc3 {[%clk 0:02:59]}  Qc7 {[%clk 0:03:02]} 6. Be3 {[%clk 0:02:57]}  a6 {[%clk 0:03:02]} 7. a3 {[%clk 0:02:54]}  Nf6 {[%clk 0:03:02]} 8. f4 {[%clk 0:02:53]}  d6 {[%clk 0:03:01]} 9. Qf3 {[%clk 0:02:52]}  Be7 {[%clk 0:02:57]} 10. O-O-O {[%clk 0:02:51]}  h5 {[%clk 0:02:56]} 11. Bd3 {[%clk 0:02:28]}  Bd7 {[%clk 0:02:56]} 12. Rhe1 {[%clk 0:02:24]}  Rc8 {[%clk 0:02:55]} 13. h3 {[%clk 0:02:15]}  h4 {[%clk 0:02:54]} 14. Kb1 {[%clk 0:02:10]}  b5 {[%clk 0:02:52]} 15. f5 {[%clk 0:02:03]}  Ne5 {[%clk 0:02:46]} 16. Qf2 {[%clk 0:01:58]}  Nc4 {[%clk 0:02:37]} 17. Bxc4 {[%clk 0:01:48]}  Qxc4 {[%clk 0:02:38]} 18. fxe6 {[%clk 0:01:45]}  fxe6 {[%clk 0:02:37]} 19. Bg5 {[%clk 0:01:41]}  b4 {[%clk 0:02:33]} 20. axb4 {[%clk 0:01:40]}  Qxb4 {[%clk 0:02:34]} 21. Nb3 {[%clk 0:01:26]}  Rxc3 {[%clk 0:01:56]} 22. bxc3 {[%clk 0:01:15]}  Qb7 {[%clk 0:01:55]} 23. e5 {[%clk 0:01:00]}  Nd5 {[%clk 0:01:26]} 24. Bxe7 {[%clk 0:00:54]}  Nxc3+ {[%clk 0:01:17]} 25. Kb2 {[%clk 0:00:52]}  Na4+ {[%clk 0:01:17]} 26. Kc1 {[%clk 0:00:44]}  Kxe7 {[%clk 0:01:17]} 27. exd6+ {[%clk 0:00:44]}  Ke8 {[%clk 0:01:13]} 28. Qd4 {[%clk 0:00:41]}  Qxg2 {[%clk 0:00:23]} 29. Rg1 {[%clk 0:00:34]}  Qf3 {[%clk 0:00:15]} 30. Rxg7 {[%clk 0:00:28]}  Rf8 {[%clk 0:00:12]} 31. Re7+ {[%clk 0:00:22]}  Kd8 {[%clk 0:00:13]} 32. Rxd7+ {[%clk 0:00:19]}  Kxd7 {[%clk 0:00:12]} 33. Qa7+ {[%clk 0:00:18]}  Kc8 {[%clk 0:00:12]} 34. Qc7# {[%clk 0:00:17]} 1-0

[Event "November 21 Early 2023"]
[Site "https://www.chess.com"]
[Date "2023.11.21"]
[Round "9"]
[White "Berezin, Viktor"]
[Black "Maltsevskaya, Aleksandra"]
[Result "0-1"]
[Board "75"]
[TimeControl "180+1"]
[WhiteFideId "14107872"]
[BlackFideId "24174041"]
[WhiteElo "2310"]
[BlackElo "2296"]
[WhiteTeam "UKR"]
[BlackTeam "POL"]
[WhiteClock "0:00:01"]
[BlackClock "0:01:49"]

1. Nf3 {[%clk 0:02:56]}  Nf6 {[%clk 0:02:59]} 2. c4 {[%clk 0:02:55]}  g6 {[%clk 0:02:59]} 3. g3 {[%clk 0:02:56]}  Bg7 {[%clk 0:03:00]} 4. Bg2 {[%clk 0:02:56]}  O-O {[%clk 0:03:00]} 5. O-O {[%clk 0:02:57]}  d6 {[%clk 0:03:01]} 6. Nc3 {[%clk 0:02:58]}  Nbd7 {[%clk 0:03:02]} 7. d3 {[%clk 0:02:58]}  e5 {[%clk 0:03:03]} 8. Rb1 {[%clk 0:02:58]}  a5 {[%clk 0:03:03]} 9. a3 {[%clk 0:02:58]}  Nc5 {[%clk 0:03:02]} 10. b4 {[%clk 0:02:57]}  axb4 {[%clk 0:03:02]} 11. axb4 {[%clk 0:02:57]}  Ne6 {[%clk 0:03:02]} 12. Bd2 {[%clk 0:02:36]}  h6 {[%clk 0:03:01]} 13. Ne1 {[%clk 0:02:30]}  Nd7 {[%clk 0:02:58]} 14. Nc2 {[%clk 0:02:29]}  f5 {[%clk 0:02:58]} 15. Ra1 {[%clk 0:02:22]}  Rb8 {[%clk 0:02:57]} 16. Nb5 {[%clk 0:02:13]}  f4 {[%clk 0:02:53]} 17. Na7 {[%clk 0:02:10]}  Nf6 {[%clk 0:02:44]} 18. Nxc8 {[%clk 0:02:09]}  Qxc8 {[%clk 0:02:45]} 19. Ra7 {[%clk 0:02:06]}  Ng5 {[%clk 0:02:45]} 20. d4 {[%clk 0:01:51]}  fxg3 {[%clk 0:02:38]} 21. hxg3 {[%clk 0:01:45]}  Nh3+ {[%clk 0:02:36]} 22. Kh1 {[%clk 0:01:39]}  Ng4 {[%clk 0:02:24]} 23. Be1 {[%clk 0:01:05]}  Ngxf2+ {[%clk 0:02:24]} 24. Bxf2 {[%clk 0:01:03]}  Nxf2+ {[%clk 0:02:24]} 25. Rxf2 {[%clk 0:01:04]}  Rxf2 {[%clk 0:02:25]} 26. dxe5 {[%clk 0:00:58]}  Bxe5 {[%clk 0:02:25]} 27. Qd5+ {[%clk 0:00:52]}  Kg7 {[%clk 0:02:18]} 28. Nd4 {[%clk 0:00:50]}  Qg4 {[%clk 0:02:12]} 29. Ne6+ {[%clk 0:00:37]}  Kh7 {[%clk 0:02:12]} 30. Ra3 {[%clk 0:00:34]}  c6 {[%clk 0:01:50]} 31. Qe4 {[%clk 0:00:09]}  Qxe6 {[%clk 0:01:50]} 32. Rf3 {[%clk 0:00:01]}  Rxf3 {[%clk 0:01:49]} 0-1

[Event "November 21 Early 2023"]
[Site "https://www.chess.com"]
[Date "2023.11.21"]
[Round "9"]
[White "Ljukin, Sergei"]
[Black "Bodnaruk, Anastasia"]
[Result "0-1"]
[Board "76"]
[TimeControl "180+1"]
[WhiteFideId "14102200"]
[BlackFideId "4181751"]
[WhiteElo "2312"]
[BlackElo "2260"]
[WhiteTeam "UKR"]
[BlackTeam "RUS"]
[WhiteClock "0:00:31"]
[BlackClock "0:01:06"]

1. e4 {[%clk 0:03:00]}  c5 {[%clk 0:02:59]} 2. Nf3 {[%clk 0:03:01]}  d6 {[%clk 0:03:00]} 3. d4 {[%clk 0:03:01]}  cxd4 {[%clk 0:03:00]} 4. Nxd4 {[%clk 0:03:02]}  Nf6 {[%clk 0:03:01]} 5. Nc3 {[%clk 0:03:02]}  a6 {[%clk 0:03:02]} 6. Bg5 {[%clk 0:03:02]}  Nbd7 {[%clk 0:03:01]} 7. f4 {[%clk 0:03:02]}  Qc7 {[%clk 0:03:00]} 8. Qf3 {[%clk 0:03:02]}  b5 {[%clk 0:03:00]} 9. Nd5 {[%clk 0:03:01]}  Qc5 {[%clk 0:02:33]} 10. O-O-O {[%clk 0:02:38]}  Bb7 {[%clk 0:02:31]} 11. b4 {[%clk 0:02:12]}  Qc8 {[%clk 0:02:30]} 12. Bxf6 {[%clk 0:02:05]}  gxf6 {[%clk 0:02:18]} 13. Kb1 {[%clk 0:01:54]}  e6 {[%clk 0:02:17]} 14. Ne3 {[%clk 0:01:54]}  h5 {[%clk 0:02:09]} 15. c4 {[%clk 0:01:53]}  f5 {[%clk 0:01:54]} 16. Bd3 {[%clk 0:01:45]}  Nf6 {[%clk 0:01:53]} 17. Nexf5 {[%clk 0:01:20]}  exf5 {[%clk 0:01:52]} 18. Nxf5 {[%clk 0:01:21]}  Qxf5 {[%clk 0:01:50]} 19. exf5 {[%clk 0:01:20]}  Bxf3 {[%clk 0:01:50]} 20. gxf3 {[%clk 0:01:21]}  Rb8 {[%clk 0:01:28]} 21. cxb5 {[%clk 0:01:21]}  axb5 {[%clk 0:01:27]} 22. Rc1 {[%clk 0:01:20]}  Kd7 {[%clk 0:01:25]} 23. Rc3 {[%clk 0:00:54]}  Nd5 {[%clk 0:01:23]} 24. Ra3 {[%clk 0:00:52]}  Nxb4 {[%clk 0:01:19]} 25. Ra7+ {[%clk 0:00:52]}  Kc6 {[%clk 0:01:15]} 26. Be2 {[%clk 0:00:39]}  Bh6 {[%clk 0:01:07]} 27. Rc1+ {[%clk 0:00:38]}  Kb6 {[%clk 0:01:08]} 28. Rxf7 {[%clk 0:00:38]}  Bxf4 {[%clk 0:01:07]} 29. Rcc7 {[%clk 0:00:31]}  Rhe8 {[%clk 0:01:06]} 0-1

[Event "November 21 Early 2023"]
[Site "https://www.chess.com"]
[Date "2023.11.21"]
[Round "9"]
[White "Koepke, Christian"]
[Black "Narayanan, Srinath"]
[Result "0-1"]
[Board "78"]
[TimeControl "180+1"]
[WhiteFideId "4655737"]
[BlackFideId "5018420"]
[WhiteElo "2238"]
[BlackElo "2442"]
[WhiteTeam "GER"]
[BlackTeam "IND"]
[WhiteClock "0:00:22"]
[BlackClock "0:00:34"]

1. e4 {[%clk 0:03:00]}  c5 {[%clk 0:03:00]} 2. b4 {[%clk 0:03:00]}  cxb4 {[%clk 0:03:00]} 3. a3 {[%clk 0:03:00]}  d5 {[%clk 0:03:00]} 4. exd5 {[%clk 0:03:01]}  Nf6 {[%clk 0:03:01]} 5. axb4 {[%clk 0:03:00]}  Nxd5 {[%clk 0:03:01]} 6. b5 {[%clk 0:03:00]}  e5 {[%clk 0:02:55]} 7. c4 {[%clk 0:02:59]}  Nf6 {[%clk 0:02:54]} 8. Bb2 {[%clk 0:02:55]}  Bc5 {[%clk 0:02:54]} 9. Nf3 {[%clk 0:02:48]}  e4 {[%clk 0:02:53]} 10. Ne5 {[%clk 0:02:39]}  Qb6 {[%clk 0:02:39]} 11. d4 {[%clk 0:02:34]}  exd3 {[%clk 0:02:34]} 12. Nxd3 {[%clk 0:02:34]}  Bd4 {[%clk 0:02:09]} 13. Be2 {[%clk 0:02:07]}  O-O {[%clk 0:02:07]} 14. O-O {[%clk 0:02:05]}  Bxb2 {[%clk 0:02:03]} 15. Nxb2 {[%clk 0:02:06]}  Nbd7 {[%clk 0:02:03]} 16. Nd3 {[%clk 0:01:54]}  Nc5 {[%clk 0:02:02]} 17. Nxc5 {[%clk 0:01:52]}  Qxc5 {[%clk 0:02:03]} 18. Nc3 {[%clk 0:01:49]}  Be6 {[%clk 0:02:01]} 19. Qa4 {[%clk 0:01:46]}  Rfc8 {[%clk 0:01:58]} 20. Bf3 {[%clk 0:01:39]}  Bxc4 {[%clk 0:01:42]} 21. Bxb7 {[%clk 0:01:33]}  Bxf1 {[%clk 0:01:35]} 22. Bxa8 {[%clk 0:01:12]}  Qxc3 {[%clk 0:01:21]} 23. Kxf1 {[%clk 0:01:06]}  Rxa8 {[%clk 0:00:46]} 24. b6 {[%clk 0:01:06]}  a5 {[%clk 0:00:45]} 25. b7 {[%clk 0:00:29]}  Rb8 {[%clk 0:00:43]} 26. Qxa5 {[%clk 0:00:30]}  Qxa5 {[%clk 0:00:41]} 27. Rxa5 {[%clk 0:00:31]}  Nd7 {[%clk 0:00:39]} 28. Ra8 {[%clk 0:00:27]}  Kf8 {[%clk 0:00:39]} 29. Ke2 {[%clk 0:00:27]}  Ke7 {[%clk 0:00:39]} 30. Ra7 {[%clk 0:00:27]}  Kd6 {[%clk 0:00:39]} 31. Kf3 {[%clk 0:00:22]}  Kc7 {[%clk 0:00:34]} 0-1

[Event "November 21 Early 2023"]
[Site "https://www.chess.com"]
[Date "2023.11.21"]
[Round "9"]
[White "Grochal, Joey"]
[Black "Ovetchkin, Roman"]
[Result "0-1"]
[Board "82"]
[TimeControl "180+1"]
[WhiteFideId "1019945"]
[BlackFideId "4119991"]
[WhiteElo "2231"]
[BlackElo "2381"]
[WhiteTeam "NED"]
[BlackTeam "RUS"]
[WhiteClock "0:00:35"]
[BlackClock "0:01:59"]

1. e4 {[%clk 0:02:59]}  c6 {[%clk 0:03:00]} 2. d4 {[%clk 0:02:59]}  d5 {[%clk 0:03:00]} 3. Nc3 {[%clk 0:02:59]}  dxe4 {[%clk 0:03:00]} 4. Nxe4 {[%clk 0:03:00]}  Nf6 {[%clk 0:03:01]} 5. Nxf6+ {[%clk 0:03:00]}  exf6 {[%clk 0:03:02]} 6. c3 {[%clk 0:03:00]}  Bd6 {[%clk 0:03:02]} 7. Nf3 {[%clk 0:03:00]}  O-O {[%clk 0:03:02]} 8. Be2 {[%clk 0:02:57]}  Re8 {[%clk 0:03:02]} 9. O-O {[%clk 0:02:57]}  Bg4 {[%clk 0:02:59]} 10. h3 {[%clk 0:02:57]}  Be6 {[%clk 0:02:59]} 11. b4 {[%clk 0:02:56]}  Nd7 {[%clk 0:02:58]} 12. a4 {[%clk 0:02:55]}  Nf8 {[%clk 0:02:58]} 13. Rb1 {[%clk 0:02:52]}  Ng6 {[%clk 0:02:58]} 14. b5 {[%clk 0:02:45]}  Qd7 {[%clk 0:02:57]} 15. bxc6 {[%clk 0:02:44]}  bxc6 {[%clk 0:02:58]} 16. Bd3 {[%clk 0:02:36]}  Bxh3 {[%clk 0:02:48]} 17. gxh3 {[%clk 0:02:36]}  Qxh3 {[%clk 0:02:48]} 18. Bxg6 {[%clk 0:02:16]}  Qg4+ {[%clk 0:02:46]} 19. Kh1 {[%clk 0:02:14]}  Qh3+ {[%clk 0:02:46]} 20. Kg1 {[%clk 0:02:15]}  hxg6 {[%clk 0:02:47]} 21. Qd3 {[%clk 0:01:46]}  g5 {[%clk 0:02:22]} 22. Ne5 {[%clk 0:01:27]}  Qh4 {[%clk 0:02:18]} 23. Qf5 {[%clk 0:01:09]}  fxe5 {[%clk 0:02:14]} 24. Bxg5 {[%clk 0:01:09]}  Qh5 {[%clk 0:02:11]} 25. Rb7 {[%clk 0:00:56]}  exd4 {[%clk 0:02:01]} 26. Kg2 {[%clk 0:00:35]}  Re5 {[%clk 0:01:59]} 0-1

[Event "November 21 Early 2023"]
[Site "https://www.chess.com"]
[Date "2023.11.21"]
[Round "9"]
[White "Ismayil, Malak"]
[Black "Skliarov, Viktor"]
[Result "0-1"]
[Board "83"]
[TimeControl "180+1"]
[WhiteFideId "13412604"]
[BlackFideId "14106736"]
[WhiteElo "1898"]
[BlackElo "2304"]
[WhiteTeam "AZE"]
[BlackTeam "UKR"]
[WhiteClock "0:00:00"]
[BlackClock "0:00:12"]

1. e4 {[%clk 0:03:00]}  c5 {[%clk 0:02:56]} 2. Nf3 {[%clk 0:03:00]}  Nc6 {[%clk 0:02:56]} 3. Bb5 {[%clk 0:02:59]}  e6 {[%clk 0:02:56]} 4. Bxc6 {[%clk 0:02:54]}  bxc6 {[%clk 0:02:57]} 5. O-O {[%clk 0:02:55]}  Ne7 {[%clk 0:02:53]} 6. c3 {[%clk 0:02:49]}  Ng6 {[%clk 0:02:53]} 7. d4 {[%clk 0:02:48]}  cxd4 {[%clk 0:02:53]} 8. Qxd4 {[%clk 0:02:44]}  Qb6 {[%clk 0:02:49]} 9. Qd1 {[%clk 0:02:12]}  Be7 {[%clk 0:02:39]} 10. Nbd2 {[%clk 0:02:11]}  d5 {[%clk 0:02:35]} 11. Qc2 {[%clk 0:01:53]}  O-O {[%clk 0:02:33]} 12. Nb3 {[%clk 0:01:50]}  c5 {[%clk 0:02:22]} 13. Be3 {[%clk 0:01:50]}  Bb7 {[%clk 0:02:20]} 14. exd5 {[%clk 0:01:48]}  exd5 {[%clk 0:02:20]} 15. Rfe1 {[%clk 0:01:39]}  Rac8 {[%clk 0:02:19]} 16. Rad1 {[%clk 0:01:38]}  d4 {[%clk 0:02:09]} 17. Bc1 {[%clk 0:01:26]}  d3 {[%clk 0:01:57]} 18. Qd2 {[%clk 0:01:16]}  Bxf3 {[%clk 0:01:54]} 19. gxf3 {[%clk 0:01:17]}  c4 {[%clk 0:01:53]} 20. Nd4 {[%clk 0:01:16]}  Bf6 {[%clk 0:01:44]} 21. Nf5 {[%clk 0:01:11]}  h6 {[%clk 0:01:42]} 22. Ng3 {[%clk 0:01:10]}  Bg5 {[%clk 0:01:39]} 23. Re3 {[%clk 0:01:10]}  Nh4 {[%clk 0:01:26]} 24. Qe1 {[%clk 0:00:22]}  Bxe3 {[%clk 0:01:25]} 25. Qxe3 {[%clk 0:00:23]}  Qxe3 {[%clk 0:01:24]} 26. Bxe3 {[%clk 0:00:23]}  a6 {[%clk 0:01:15]} 27. Ne4 {[%clk 0:00:21]}  f5 {[%clk 0:00:57]} 28. Nd2 {[%clk 0:00:14]}  f4 {[%clk 0:00:56]} 29. Bd4 {[%clk 0:00:14]}  Rfe8 {[%clk 0:00:56]} 30. b3 {[%clk 0:00:11]}  Re2 {[%clk 0:00:54]} 31. Kf1 {[%clk 0:00:10]}  g5 {[%clk 0:00:31]} 32. bxc4 {[%clk 0:00:07]}  Kf7 {[%clk 0:00:30]} 33. Ne4 {[%clk 0:00:07]}  Kg6 {[%clk 0:00:23]} 34. Rxd3 {[%clk 0:00:07]}  Rxa2 {[%clk 0:00:23]} 35. Nd2 {[%clk 0:00:03]}  Rd8 {[%clk 0:00:17]} 36. Nb1 {[%clk 0:00:01]}  Ra1 {[%clk 0:00:15]} 37. Rd1 {[%clk 0:00:02]}  Nxf3 {[%clk 0:00:16]} 38. Kg2 {[%clk 0:00:01]}  g4 {[%clk 0:00:14]} 39. c5 {[%clk 0:00:01]}  a5 {[%clk 0:00:13]} 40. h3 {[%clk 0:00:01]}  h5 {[%clk 0:00:13]} 41. hxg4 {[%clk 0:00:01]}  hxg4 {[%clk 0:00:14]} 42. c6 {[%clk 0:00:02]}  Rc8 {[%clk 0:00:14]} 43. Rc1 {[%clk 0:00:02]}  Rxc6 {[%clk 0:00:14]} 44. Rd1 {[%clk 0:00:02]}  Rc8 {[%clk 0:00:13]} 45. c4 {[%clk 0:00:02]}  Rxc4 {[%clk 0:00:13]} 46. Bb2 {[%clk 0:00:01]}  Ra2 {[%clk 0:00:13]} 47. Rd6+ {[%clk 0:00:01]}  Kf5 {[%clk 0:00:13]} 48. Bf6 {[%clk 0:00:02]}  Rcc2 {[%clk 0:00:12]} 49. Nc3 {[%clk 0:00:00]}  Rxf2+ {[%clk 0:00:12]} 0-1

[Event "November 21 Early 2023"]
[Site "https://www.chess.com"]
[Date "2023.11.21"]
[Round "9"]
[White "BM223344"]
[Black "Ambartsumova, Karina"]
[Result "1/2-1/2"]
[Board "84"]
[TimeControl "180+1"]
[BlackFideId "4166299"]
[WhiteElo "2490"]
[BlackElo "2240"]
[BlackTeam "RUS"]
[WhiteClock "0:00:20"]
[BlackClock "0:00:12"]

1. d4 {[%clk 0:03:00]}  Nf6 {[%clk 0:02:59]} 2. c4 {[%clk 0:03:00]}  e6 {[%clk 0:03:00]} 3. Nf3 {[%clk 0:03:01]}  d5 {[%clk 0:03:00]} 4. g3 {[%clk 0:03:01]}  dxc4 {[%clk 0:03:00]} 5. Qa4+ {[%clk 0:03:01]}  c6 {[%clk 0:02:50]} 6. Qxc4 {[%clk 0:03:02]}  b5 {[%clk 0:02:50]} 7. Qc2 {[%clk 0:03:02]}  Bb7 {[%clk 0:02:50]} 8. Bg2 {[%clk 0:03:03]}  Be7 {[%clk 0:02:49]} 9. O-O {[%clk 0:03:04]}  O-O {[%clk 0:02:49]} 10. a4 {[%clk 0:03:03]}  a6 {[%clk 0:02:47]} 11. e4 {[%clk 0:03:03]}  Nbd7 {[%clk 0:02:43]} 12. Rd1 {[%clk 0:03:03]}  c5 {[%clk 0:02:32]} 13. e5 {[%clk 0:02:45]}  Nd5 {[%clk 0:02:32]} 14. Nc3 {[%clk 0:02:43]}  b4 {[%clk 0:02:05]} 15. Nxd5 {[%clk 0:02:29]}  Bxd5 {[%clk 0:02:06]} 16. dxc5 {[%clk 0:02:30]}  Rc8 {[%clk 0:02:00]} 17. Be3 {[%clk 0:02:30]}  Nxc5 {[%clk 0:01:58]} 18. Qe2 {[%clk 0:02:28]}  Qa5 {[%clk 0:01:53]} 19. Nd4 {[%clk 0:02:22]}  Rfd8 {[%clk 0:01:46]} 20. h4 {[%clk 0:02:14]}  h6 {[%clk 0:01:36]} 21. Qg4 {[%clk 0:02:12]}  Kh8 {[%clk 0:01:34]} 22. Qh5 {[%clk 0:02:09]}  Kg8 {[%clk 0:01:24]} 23. Qg4 {[%clk 0:02:09]}  Kh7 {[%clk 0:01:14]} 24. h5 {[%clk 0:01:39]}  Bxg2 {[%clk 0:01:12]} 25. Kxg2 {[%clk 0:01:39]}  Qc7 {[%clk 0:01:12]} 26. Nf3 {[%clk 0:01:28]}  Qb7 {[%clk 0:01:09]} 27. Qf4 {[%clk 0:01:22]}  Kg8 {[%clk 0:01:07]} 28. Rxd8+ {[%clk 0:01:14]}  Rxd8 {[%clk 0:01:07]} 29. Qc4 {[%clk 0:01:14]}  Nd3 {[%clk 0:01:02]} 30. Bf4 {[%clk 0:01:00]}  Bg5 {[%clk 0:00:50]} 31. Bxg5 {[%clk 0:00:59]}  hxg5 {[%clk 0:00:50]} 32. Rd1 {[%clk 0:00:47]}  Nf4+ {[%clk 0:00:44]} 33. gxf4 {[%clk 0:00:47]}  Rxd1 {[%clk 0:00:43]} 34. fxg5 {[%clk 0:00:48]}  Rd8 {[%clk 0:00:33]} 35. g6 {[%clk 0:00:47]}  a5 {[%clk 0:00:30]} 36. Kg3 {[%clk 0:00:44]}  Qd5 {[%clk 0:00:24]} 37. Qg4 {[%clk 0:00:42]}  fxg6 {[%clk 0:00:22]} 38. hxg6 {[%clk 0:00:37]}  Rf8 {[%clk 0:00:16]} 39. Qh5 {[%clk 0:00:37]}  Rxf3+ {[%clk 0:00:16]} 40. Qxf3 {[%clk 0:00:37]}  Qxe5+ {[%clk 0:00:17]} 41. Qf4 {[%clk 0:00:35]}  Qxf4+ {[%clk 0:00:14]} 42. Kxf4 {[%clk 0:00:36]}  Kf8 {[%clk 0:00:15]} 43. Ke5 {[%clk 0:00:36]}  Ke7 {[%clk 0:00:15]} 44. b3 {[%clk 0:00:37]}  Kd7 {[%clk 0:00:15]} 45. Kd4 {[%clk 0:00:34]}  Kd6 {[%clk 0:00:16]} 46. f4 {[%clk 0:00:35]}  Kc6 {[%clk 0:00:15]} 47. Ke5 {[%clk 0:00:28]}  Kd7 {[%clk 0:00:15]} 48. Kd4 {[%clk 0:00:28]}  Kd6 {[%clk 0:00:14]} 49. Kc4 {[%clk 0:00:29]}  Kc6 {[%clk 0:00:14]} 50. Kd4 {[%clk 0:00:29]}  Kd6 {[%clk 0:00:14]} 51. Ke4 {[%clk 0:00:26]}  Kd7 {[%clk 0:00:13]} 52. Ke5 {[%clk 0:00:24]}  Ke7 {[%clk 0:00:13]} 53. Kd4 {[%clk 0:00:20]}  Kd6 {[%clk 0:00:12]} 1/2-1/2

[Event "November 21 Early 2023"]
[Site "https://www.chess.com"]
[Date "2023.11.21"]
[Round "9"]
[White "Belov, Alexei"]
[Black "FunnyDuck66"]
[Result "0-1"]
[Board "85"]
[TimeControl "180+1"]
[WhiteFideId "4128206"]
[WhiteElo "2614"]
[BlackElo "2477"]
[WhiteTeam "RUS"]
[WhiteClock "0:00:00"]
[BlackClock "0:00:13"]

1. e4 {[%clk 0:02:56]}  c6 {[%clk 0:02:39]} 2. d4 {[%clk 0:02:56]}  d5 {[%clk 0:02:38]} 3. Nd2 {[%clk 0:02:56]}  dxe4 {[%clk 0:02:38]} 4. Nxe4 {[%clk 0:02:55]}  Nf6 {[%clk 0:02:39]} 5. Nxf6+ {[%clk 0:02:56]}  exf6 {[%clk 0:02:40]} 6. c3 {[%clk 0:02:56]}  Bd6 {[%clk 0:02:40]} 7. Bd3 {[%clk 0:02:57]}  Na6 {[%clk 0:02:39]} 8. Ne2 {[%clk 0:02:56]}  Nc7 {[%clk 0:02:39]} 9. Qc2 {[%clk 0:02:53]}  h5 {[%clk 0:02:36]} 10. Bf4 {[%clk 0:02:44]}  Nd5 {[%clk 0:02:20]} 11. Bxd6 {[%clk 0:02:41]}  Qxd6 {[%clk 0:02:21]} 12. O-O {[%clk 0:02:40]}  Kf8 {[%clk 0:02:20]} 13. Rfe1 {[%clk 0:02:36]}  Be6 {[%clk 0:02:19]} 14. Bf5 {[%clk 0:02:34]}  Bxf5 {[%clk 0:02:16]} 15. Qxf5 {[%clk 0:02:33]}  g6 {[%clk 0:02:16]} 16. Qf3 {[%clk 0:02:30]}  Kg7 {[%clk 0:02:16]} 17. Ng3 {[%clk 0:02:21]}  f5 {[%clk 0:02:13]} 18. Qxf5 {[%clk 0:02:15]}  h4 {[%clk 0:01:15]} 19. Ne4 {[%clk 0:02:12]}  Qxh2+ {[%clk 0:01:14]} 20. Kxh2 {[%clk 0:02:12]}  gxf5 {[%clk 0:01:14]} 21. Nd6 {[%clk 0:01:59]}  Kf6 {[%clk 0:01:14]} 22. Re5 {[%clk 0:01:55]}  Rad8 {[%clk 0:01:08]} 23. Nxf5 {[%clk 0:01:44]}  Rh5 {[%clk 0:01:04]} 24. Ne3 {[%clk 0:01:43]}  Rxe5 {[%clk 0:01:02]} 25. Ng4+ {[%clk 0:01:43]}  Ke6 {[%clk 0:01:01]} 26. Nxe5 {[%clk 0:01:42]}  f6 {[%clk 0:00:55]} 27. Nf3 {[%clk 0:01:34]}  Nf4 {[%clk 0:00:55]} 28. Re1+ {[%clk 0:01:28]}  Kd6 {[%clk 0:00:54]} 29. Re3 {[%clk 0:01:26]}  Rg8 {[%clk 0:00:38]} 30. Nxh4 {[%clk 0:01:20]}  Rh8 {[%clk 0:00:36]} 31. g3 {[%clk 0:01:17]}  Ng6 {[%clk 0:00:36]} 32. Kh3 {[%clk 0:01:13]}  Ne7 {[%clk 0:00:29]} 33. Kg4 {[%clk 0:01:08]}  Rg8+ {[%clk 0:00:28]} 34. Kf3 {[%clk 0:01:05]}  Rg5 {[%clk 0:00:28]} 35. Re4 {[%clk 0:00:57]}  Rb5 {[%clk 0:00:25]} 36. b4 {[%clk 0:00:53]}  a5 {[%clk 0:00:23]} 37. a3 {[%clk 0:00:49]}  axb4 {[%clk 0:00:18]} 38. axb4 {[%clk 0:00:48]}  Rg5 {[%clk 0:00:19]} 39. c4 {[%clk 0:00:38]}  b5 {[%clk 0:00:18]} 40. c5+ {[%clk 0:00:38]}  Kd7 {[%clk 0:00:18]} 41. Rg4 {[%clk 0:00:30]}  Rxg4 {[%clk 0:00:18]} 42. Kxg4 {[%clk 0:00:30]}  Nd5 {[%clk 0:00:19]} 43. Kf5 {[%clk 0:00:23]}  Nxb4 {[%clk 0:00:20]} 44. Nf3 {[%clk 0:00:19]}  Ke7 {[%clk 0:00:17]} 45. Nd2 {[%clk 0:00:16]}  Nc2 {[%clk 0:00:15]} 46. Ke4 {[%clk 0:00:16]}  Na1 {[%clk 0:00:14]} 47. f4 {[%clk 0:00:14]}  Ke6 {[%clk 0:00:13]} 48. g4 {[%clk 0:00:14]}  Nc2 {[%clk 0:00:13]} 49. f5+ {[%clk 0:00:14]}  Kf7 {[%clk 0:00:13]} 50. Nb3 {[%clk 0:00:14]}  Nb4 {[%clk 0:00:13]} 51. Na5 {[%clk 0:00:11]}  Kg7 {[%clk 0:00:13]} 52. Kf3 {[%clk 0:00:11]}  Kh6 {[%clk 0:00:14]} 53. Kf4 {[%clk 0:00:11]}  Nd3+ {[%clk 0:00:13]} 54. Ke3 {[%clk 0:00:11]}  Nb4 {[%clk 0:00:13]} 55. Kf4 {[%clk 0:00:10]}  Nd3+ {[%clk 0:00:13]} 56. Kg3 {[%clk 0:00:11]}  Nb4 {[%clk 0:00:13]} 57. Kh4 {[%clk 0:00:11]}  Nc2 {[%clk 0:00:11]} 58. Nxc6 {[%clk 0:00:11]}  b4 {[%clk 0:00:12]} 59. Na5 {[%clk 0:00:09]}  Nxd4 {[%clk 0:00:12]} 60. c6 {[%clk 0:00:08]}  Nxc6 {[%clk 0:00:12]} 61. Nb3 {[%clk 0:00:05]}  Ne5 {[%clk 0:00:13]} 62. Kg3 {[%clk 0:00:05]}  Kg5 {[%clk 0:00:12]} 63. Nd4 {[%clk 0:00:05]}  Nxg4 {[%clk 0:00:12]} 64. Ne6+ {[%clk 0:00:02]}  Kxf5 {[%clk 0:00:13]} 65. Nd4+ {[%clk 0:00:02]}  Ke4 {[%clk 0:00:13]} 66. Nb3 {[%clk 0:00:02]}  Ne5 {[%clk 0:00:13]} 67. Kf2 {[%clk 0:00:00]}  Kd3 {[%clk 0:00:13]} 0-1